bitfinex/quotes_BTCUSD_20250101
["timestamp","ask_amount","ask_price","bid_price","bid_amount"]
[1735750261489,0.212343,94187.0,94186.0,8.53e-05]
[1735750261891,0.21503286,94187.0,94186.0,8.53e-05]
[1735750263397,0.21503286,94187.0,94186.0,0.00019606]
[1735750263758,0.21503286,94187.0,94186.0,0.00119606]
[1735750264171,0.21503286,94187.0,94186.0,0.00219606]
[1735750264773,0.21503286,94187.0,94186.0,0.20222066]
[1735750265088,0.21503286,94187.0,94186.0,0.20739385]
[1735750268067,0.00268986,94187.0,94186.0,0.30614176]
[1735750268274,0.212339,94189.0,94186.0,0.30614176]
[1735750268482,0.212339,94189.0,94188.0,0.00011076]
[1735750268874,0.212339,94189.0,94188.0,0.10927173]
[1735750269071,0.212339,94189.0,94188.0,0.10409708]
[1735750269272,0.212339,94189.0,94188.0,0.10927173]
[1735750269500,0.212339,94189.0,94188.0,0.00517465]
[1735750269501,0.40484499,94189.0,94188.0,0.00517465]
[1735750269712,0.39881528,94189.0,94188.0,0.00517465]
[1735750269994,0.362343,94187.0,94186.0,8.53e-05]
[1735750270402,0.39881928,94187.0,94186.0,8.53e-05]
[1735750271202,0.39881928,94187.0,94186.0,0.0010853]
[1735750271725,0.39881928,94187.0,94186.0,8.53e-05]
[1735750271894,0.40081928,94187.0,94186.0,8.53e-05]
[1735750272703,0.40581928,94187.0,94186.0,0.0010853]
[1735750275627,0.40581928,94187.0,94182.0,8.53e-05]
[1735750275628,0.36631372,94183.0,94182.0,6e-07]
[1735750275887,0.49291372,94183.0,94182.0,6e-07]
[1735750276061,0.50345995,94183.0,94182.0,6e-07]
[1735750276997,0.50645995,94183.0,94182.0,6e-07]
[1735750277702,0.50745995,94183.0,94182.0,6e-07]
[1735750279418,0.50349823,94183.0,94182.0,6e-07]
[1735750284093,0.61144627,94183.0,94182.0,6e-07]
[1735750284266,0.50745995,94183.0,94182.0,6e-07]
[1735750284818,0.63444627,94183.0,94182.0,6e-07]
[1735750285027,0.63168356,94183.0,94182.0,6e-07]
[1735750286700,0.7315728,94183.0,94182.0,6e-07]
[1735750287769,0.7275728,94183.0,94182.0,6e-07]
[1735750287947,0.7315728,94183.0,94182.0,6e-07]
[1735750288282,0.7275728,94183.0,94182.0,6e-07]
[1735750288733,0.63168356,94183.0,94182.0,6e-07]
[1735750288938,0.7405728,94183.0,94182.0,6e-07]
[1735750289338,0.7315728,94183.0,94182.0,6e-07]
[1735750289580,0.7448288,94183.0,94182.0,6e-07]
[1735750290981,0.7448288,94183.0,94158.0,8e-07]
[1735750290982,0.362406,94159.0,94158.0,8e-07]
[1735750292063,0.38786849,94159.0,94158.0,8e-07]
[1735750292199,0.38786849,94159.0,94158.0,0.00049643]
[1735750292413,0.39286849,94159.0,94158.0,0.00049643]
[1735750293363,0.39386849,94159.0,94158.0,0.00049643]
[1735750294184,0.38886849,94159.0,94158.0,0.00049643]
[1735750295463,0.39695007,94159.0,94158.0,0.00049643]
[1735750298176,0.39695007,94159.0,94158.0,4.3e-07]
[1735750298424,0.39755279,94159.0,94158.0,4.3e-07]
[1735750298651,0.39755279,94159.0,94140.0,0.000106]
[1735750298652,0.362422,94152.0,94151.0,4.3e-07]
[1735750298860,0.362422,94152.0,94151.0,0.00014898]
[1735750299284,0.39259047,94152.0,94151.0,0.00014898]
[1735750300043,0.39459047,94152.0,94151.0,0.00014898]
[1735750300253,0.36638772,94150.0,94149.0,7.8e-07]
[1735750300450,0.47037404,94150.0,94149.0,2e-08]
[1735750300676,0.51024675,94150.0,94149.0,2e-08]
[1735750301255,0.51024675,94150.0,94131.0,3.2e-07]
[1735750301256,0.15,94140.0,94131.0,3.2e-07]
[1735750301508,0.212443,94143.0,94131.0,3.2e-07]
[1735750301509,0.212467,94132.0,94131.0,3.2e-07]
[1735750302022,0.24620269,94132.0,94131.0,3.2e-07]
[1735750302261,0.2464263,94132.0,94131.0,3.2e-07]
[1735750302986,0.2524263,94132.0,94131.0,3.2e-07]
[1735750303745,0.4024263,94132.0,94131.0,3.2e-07]
[1735750304027,0.212501,94117.0,94111.0,3.2e-07]
[1735750304531,0.00022361,94116.0,94111.0,3.2e-07]
[1735750304768,0.00890791,94116.0,94111.0,3.2e-07]
[1735750305021,0.362512,94112.0,94111.0,3.2e-07]
[1735750305416,0.37141991,94112.0,94111.0,3.2e-07]
[1735750305640,0.37153597,94112.0,94111.0,3.2e-07]
[1735750305847,0.36262806,94112.0,94111.0,3.2e-07]
[1735750306021,0.36492676,94112.0,94111.0,3.2e-07]
[1735750306226,0.39910472,94112.0,94111.0,3.2e-07]
[1735750307436,0.40010472,94112.0,94111.0,3.2e-07]
[1735750309041,0.36762806,94112.0,94111.0,0.07530032]
[1735750309468,0.00511606,94112.0,94111.0,0.2793974]
[1735750309670,0.00511606,94112.0,94111.0,0.28369959]
[1735750310060,0.00011606,94112.0,94111.0,0.28369959]
[1735750311977,0.00111606,94112.0,94111.0,0.28369959]
[1735750312371,0.00111606,94112.0,94111.0,0.31694955]
[1735750313818,0.00111606,94112.0,94111.0,0.28369959]
[1735750315507,0.00111606,94112.0,94111.0,0.28378499]
[1735750315710,0.00128686,94112.0,94111.0,0.28378499]
[1735750323513,0.00713522,94112.0,94111.0,0.28378499]
[1735750325000,0.00128686,94112.0,94111.0,0.28378499]
[1735750327436,0.00128686,94112.0,94111.0,0.28367423]
[1735750327642,0.00128686,94112.0,94111.0,0.00438791]
[1735750328003,0.04180336,94112.0,94111.0,0.00438791]
[1735750328182,0.04180336,94112.0,94111.0,8.572e-05]
[1735750328693,0.00706767,94112.0,94111.0,8.572e-05]
[1735750329113,0.01006767,94112.0,94111.0,8.572e-05]
[1735750329321,0.00706767,94112.0,94111.0,8.572e-05]
[1735750330289,0.00028686,94112.0,94111.0,8.572e-05]
[1735750332437,0.00028686,94112.0,94111.0,0.08611613]
[1735750332660,0.00028686,94112.0,94111.0,0.3250828]
[1735750332882,0.00128686,94112.0,94111.0,0.32940615]
[1735750335262,0.00028686,94112.0,94111.0,0.32940615]
[1735750335930,0.00128686,94112.0,94111.0,0.32940615]
[1735750339433,0.00128686,94112.0,94111.0,0.3250828]
[1735750339651,0.00128686,94112.0,94111.0,0.32939172]
[1735750346838,0.00128686,94112.0,94111.0,0.32928096]
[1735750347476,0.20939557,94119.0,94111.0,0.32928096]
[1735750347685,0.20939557,94119.0,94112.0,0.10398632]
[1735750347894,0.20939557,94119.0,94118.0,0.10011076]
[1735750348107,0.20939557,94119.0,94118.0,0.20409708]
[1735750348317,0.20939557,94119.0,94118.0,0.2084009]
[1735750350703,0.20956617,94119.0,94118.0,0.2084009]
[1735750350919,0.20956617,94119.0,94118.0,0.00441458]
[1735750351143,0.36659914,94119.0,94118.0,0.00430382]
[1735750351624,0.212512,94112.0,94111.0,0.00023502]
[1735750351843,0.0001706,94119.0,94118.0,0.00011076]
[1735750352056,0.2126666,94119.0,94118.0,0.00011076]
[1735750352588,0.2126666,94119.0,94118.0,0.00211076]
[1735750353900,0.2126666,94119.0,94118.0,0.00011076]
[1735750354285,0.2126666,94119.0,94118.0,0.00111076]
[1735750358211,0.2126666,94119.0,94118.0,0.02164397]
[1735750359948,0.2126666,94119.0,94118.0,0.10484397]
[1735750360151,0.2126666,94119.0,94118.0,0.30883029]
[1735750360523,0.2126666,94119.0,94118.0,0.00542398]
[1735750360914,0.2126666,94119.0,94118.0,0.00111076]
[1735750361560,0.3626666,94119.0,94118.0,0.00111076]
[1735750362478,0.212493,94121.0,94120.0,0.00011076]
[1735750364934,0.212493,94121.0,94120.0,0.00111076]
[1735750368707,0.212493,94121.0,94120.0,0.001]
[1735750368829,0.212493,94121.0,94120.0,0.00111076]
[1735750373987,0.212493,94121.0,94120.0,0.09443037]
[1735750374404,0.212493,94121.0,94120.0,0.09874057]
[1735750375376,0.2126636,94121.0,94120.0,0.08862096]
[1735750378722,0.2126636,94121.0,94120.0,0.0043102]
[1735750378931,0.43991959,94121.0,94120.0,2e-07]
[1735750379146,0.43559495,94121.0,94120.0,0.0020002]
[1735750379596,0.43559495,94121.0,94120.0,2e-07]
[1735750380338,0.41511582,94121.0,94120.0,2e-07]
[1735750380512,0.15,94120.0,94119.0,8.53e-05]
[1735750381129,0.15745222,94120.0,94119.0,8.53e-05]
[1735750382124,0.01445222,94120.0,94119.0,0.0010853]
[1735750383029,0.01645222,94120.0,94119.0,0.0010853]
[1735750383579,0.16645222,94120.0,94119.0,0.0010853]
[1735750389766,0.159,94120.0,94119.0,0.0010853]
[1735750390208,0.159,94120.0,94119.0,0.00454882]
[1735750390826,0.3956737,94120.0,94119.0,0.00454882]
[1735750391349,0.3956737,94120.0,94119.0,0.0010853]
[1735750395934,0.159,94120.0,94119.0,0.0010853]
[1735750396493,0.159,94120.0,94119.0,0.00455961]
[1735750396715,0.0081706,94121.0,94119.0,0.00455961]
[1735750397122,0.2206636,94121.0,94119.0,0.00455961]
[1735750397610,0.2206636,94121.0,94119.0,0.0010853]
[1735750397969,0.2126636,94121.0,94119.0,8.53e-05]
[1735750398178,0.2196636,94121.0,94120.0,0.00347431]
[1735750398577,0.2196636,94121.0,94119.0,8.53e-05]
[1735750398778,0.2216636,94121.0,94120.0,0.01804814]
[1735750398961,0.2216636,94121.0,94120.0,0.02152245]
[1735750399163,0.2196636,94121.0,94120.0,0.01804814]
[1735750399388,0.2126636,94121.0,94120.0,0.01804814]
[1735750399761,0.2216636,94121.0,94120.0,0.01904814]
[1735750399940,0.2216636,94121.0,94120.0,0.001]
[1735750400073,0.2216636,94121.0,94120.0,0.00447431]
[1735750405247,0.2216636,94121.0,94120.0,0.001]
[1735750406427,0.00780695,94120.0,94118.0,6e-07]
[1735750406643,0.212496,94119.0,94118.0,6e-07]
[1735750407545,0.22037207,94119.0,94118.0,6e-07]
[1735750409042,0.22637207,94119.0,94118.0,0.0010006]
[1735750409247,0.22637207,94119.0,94118.0,6e-07]
[1735750409673,0.46324345,94119.0,94118.0,6e-07]
[1735750409866,0.46524345,94119.0,94118.0,6e-07]
[1735750411058,0.46524345,94119.0,94118.0,8.59e-05]
[1735750411335,0.46524345,94119.0,94118.0,9e-07]
[1735750411454,0.212512,94112.0,94111.0,9.2e-07]
[1735750411877,0.22038807,94112.0,94111.0,9.2e-07]
[1735750412882,0.22338807,94112.0,94111.0,9.2e-07]
[1735750413741,0.46025945,94112.0,94111.0,9.2e-07]
[1735750413938,0.46225945,94112.0,94111.0,9.2e-07]
[1735750414608,0.69055945,94112.0,94111.0,9.2e-07]
[1735750414757,0.68755945,94112.0,94111.0,9.2e-07]
[1735750414976,0.45668807,94112.0,94111.0,9.2e-07]
[1735750415179,0.45672894,94112.0,94111.0,9.2e-07]
[1735750416545,0.50352894,94112.0,94111.0,9.2e-07]
[1735750417989,0.60751526,94112.0,94111.0,9.2e-07]
[1735750419974,0.89162974,94112.0,94111.0,9.2e-07]
[1735750421311,0.60751526,94112.0,94111.0,9.2e-07]
[1735750422393,0.59959832,94112.0,94111.0,2.2e-07]
[1735750422605,0.60755143,94112.0,94111.0,2.2e-07]
[1735750424081,0.60953378,94112.0,94111.0,2.2e-07]
[1735750424212,0.63980742,94112.0,94111.0,2.2e-07]
[1735750433399,0.66280742,94112.0,94111.0,2.2e-07]
[1735750434874,0.66297802,94112.0,94111.0,2.2e-07]
[1735750440412,0.98302004,94112.0,94111.0,2.2e-07]
[1735750440836,0.85792004,94112.0,94111.0,2.2e-07]
[1735750441372,0.58093372,94112.0,94111.0,0.07780022]
[1735750441603,0.54072462,94112.0,94111.0,0.07780022]
[1735750441985,0.2206826,94112.0,94111.0,0.08142208]
[1735750442367,0.3686826,94112.0,94111.0,0.08142208]
[1735750442565,0.2186826,94112.0,94111.0,0.08142208]
[1735750442789,0.2126826,94112.0,94111.0,0.08142208]
[1735750443004,0.12110733,94114.0,94111.0,0.08142208]
[1735750443147,0.003,94112.0,94111.0,0.08142208]
[1735750443346,0.212503,94116.0,94114.0,0.00011076]
[1735750443552,0.362503,94116.0,94115.0,0.0778]
[1735750443760,0.362503,94116.0,94115.0,0.0758]
[1735750444170,0.862503,94116.0,94115.0,0.0758]
[1735750445469,0.864503,94116.0,94115.0,0.0758]
[1735750446616,0.364503,94116.0,94115.0,0.0758]
[1735750446818,0.3646736,94116.0,94115.0,0.12201076]
[1735750447084,0.0021706,94116.0,94115.0,0.24421186]
[1735750447239,0.0021706,94116.0,94115.0,0.22551644]
[1735750447449,0.0021706,94116.0,94115.0,0.32950276]
[1735750447681,0.0001706,94116.0,94115.0,0.32950276]
[1735750448089,0.0021706,94116.0,94115.0,0.32950276]
[1735750448488,0.0021706,94116.0,94115.0,0.33050276]
[1735750448691,0.0021706,94116.0,94115.0,0.36655306]
[1735750448868,0.0001706,94116.0,94115.0,0.36355306]
[1735750449319,0.0011706,94116.0,94115.0,0.33550276]
[1735750449493,0.0001706,94116.0,94115.0,0.33050276]
[1735750449947,0.0011706,94116.0,94115.0,0.33450276]
[1735750450356,0.0011706,94116.0,94115.0,0.33850276]
[1735750450748,0.0011706,94116.0,94115.0,0.33450276]
[1735750450964,0.0011706,94116.0,94115.0,0.32950276]
[1735750451167,0.0001706,94116.0,94115.0,0.33250276]
[1735750451364,0.0001706,94116.0,94115.0,0.33650276]
[1735750451562,0.0001706,94116.0,94115.0,0.33250276]
[1735750451737,0.0001706,94116.0,94115.0,0.32950276]
[1735750451941,0.0011706,94116.0,94115.0,0.38870456]
[1735750452160,0.0001706,94116.0,94115.0,0.38370456]
[1735750452625,0.0001706,94116.0,94115.0,0.38870456]
[1735750452832,0.0011706,94116.0,94115.0,0.38870456]
[1735750453217,0.0011706,94116.0,94115.0,0.39270456]
[1735750453628,0.0011706,94116.0,94115.0,0.38870456]
[1735750454004,0.0011706,94116.0,94115.0,0.39270456]
[1735750460123,0.0011706,94116.0,94115.0,0.33850276]
[1735750466950,0.0011706,94116.0,94115.0,0.46150276]
[1735750467120,0.0001706,94121.0,94120.0,0.30011076]
[1735750467319,0.0001706,94121.0,94120.0,0.55469708]
[1735750467559,0.212412,94157.0,94154.0,0.10011076]
[1735750467747,0.212412,94157.0,94154.0,0.33169708]
[1735750467968,0.424824,94157.0,94154.0,0.33514103]
[1735750468182,0.33970727,94155.0,94154.0,0.33514103]
[1735750468621,0.15,94155.0,94154.0,0.33514103]
[1735750468842,0.15004976,94155.0,94154.0,0.37365513]
[1735750469047,0.00104976,94155.0,94154.0,0.37365513]
[1735750470200,0.00104976,94155.0,94154.0,0.37665513]
[1735750471029,0.00104976,94155.0,94154.0,0.34314103]
[1735750471396,0.00122036,94155.0,94154.0,0.34314103]
[1735750490974,0.00122036,94155.0,94154.0,0.46614103]
[1735750491947,0.00122036,94155.0,94154.0,0.56614103]
[1735750492155,0.00122036,94155.0,94154.0,0.58219516]
[1735750492360,0.00122036,94155.0,94154.0,0.68618148]
[1735750492935,0.00122036,94155.0,94154.0,0.68318148]
[1735750493130,0.00222036,94155.0,94154.0,0.68418148]
[1735750493363,0.00122036,94155.0,94154.0,0.68418148]
[1735750493563,0.00222036,94155.0,94154.0,0.69318148]
[1735750493738,0.00122036,94155.0,94154.0,0.79938148]
[1735750494064,0.00222036,94155.0,94154.0,0.80638148]
[1735750494665,0.0001706,94193.0,94158.0,0.54081076]
[1735750494984,0.0001706,94193.0,94158.0,0.77512848]
[1735750495183,0.0001706,94193.0,94158.0,0.81686428]
[1735750495561,0.0001706,94193.0,94158.0,0.84895585]
[1735750496180,0.0001706,94193.0,94158.0,1.16872628]
[1735750496386,0.00089855,94159.0,94158.0,1.17472628]
[1735750496586,0.00089855,94159.0,94158.0,1.18372628]
[1735750497027,0.00089855,94159.0,94158.0,1.86905806]
[1735750497822,0.00089855,94159.0,94158.0,1.37426428]
[1735750499014,0.00089855,94159.0,94158.0,1.15807796]
[1735750499226,0.00089855,94159.0,94158.0,1.13239629]
[1735750499823,0.00089855,94159.0,94158.0,1.11634216]
[1735750500249,0.00089855,94159.0,94158.0,1.01634216]
[1735750500434,0.00089855,94159.0,94158.0,0.6647314]
[1735750500609,0.00089855,94159.0,94158.0,0.7647314]
[1735750500823,0.00089855,94159.0,94158.0,0.86882848]
[1735750501031,0.00089855,94159.0,94158.0,0.76484216]
[1735750501231,0.15,94184.0,94159.0,0.212406]
[1735750501431,0.15,94184.0,94161.0,0.212402]
[1735750501432,0.15049746,94184.0,94161.0,0.212402]
[1735750501753,0.15049746,94184.0,94174.0,0.1]
[1735750501987,0.00049746,94184.0,94183.0,0.00011076]
[1735750502574,0.00049746,94184.0,94183.0,0.00345239]
[1735750502776,0.00049746,94184.0,94183.0,0.10011076]
[1735750503015,0.00049746,94184.0,94183.0,0.10345239]
[1735750503563,0.00149746,94184.0,94183.0,0.10345239]
[1735750503966,0.00049746,94184.0,94183.0,0.10345239]
[1735750504175,0.00049746,94184.0,94183.0,0.20943871]
[1735750505709,0.00049746,94184.0,94183.0,0.21143871]
[1735750508164,0.00066806,94184.0,94183.0,0.21143871]
[1735750510735,0.00066806,94184.0,94183.0,0.23258258]
[1735750511708,0.00066806,94184.0,94183.0,0.23058258]
[1735750512311,0.00066806,94184.0,94183.0,0.22858258]
[1735750512710,0.00166806,94184.0,94183.0,0.22858258]
[1735750513485,0.00066806,94184.0,94183.0,0.22858258]
[1735750513817,0.00166806,94184.0,94183.0,0.22858258]
[1735750514234,0.00066806,94184.0,94183.0,0.22858258]
[1735750514405,0.00066806,94184.0,94183.0,0.23058258]
[1735750515039,0.00066806,94184.0,94183.0,0.23158258]
[1735750515759,0.00066806,94184.0,94183.0,0.21043871]
[1735750519088,0.00467145,94184.0,94183.0,0.10645239]
[1735750519316,0.00513217,94184.0,94183.0,0.10645239]
[1735750519851,0.44488217,94184.0,94183.0,0.00634163]
[1735750520072,0.44488217,94184.0,94183.0,0.00645239]
[1735750520278,0.44488217,94184.0,94183.0,0.00311076]
[1735750520487,0.44488217,94184.0,94183.0,0.003]
[1735750521192,0.44488217,94184.0,94183.0,0.00211076]
[1735750522706,0.44488217,94184.0,94183.0,0.00011076]
[1735750522918,0.44588217,94184.0,94183.0,0.00011076]
[1735750523338,0.15,94183.0,94182.0,0.00011076]
[1735750524229,0.15,94183.0,94182.0,0.00345894]
[1735750524422,0.001,94183.0,94182.0,0.00345894]
[1735750526537,0.001,94183.0,94182.0,0.00334818]
[1735750526928,0.001,94183.0,94179.0,0.1]
[1735750527149,0.001,94183.0,94182.0,0.0033472]
[1735750527330,0.001,94183.0,94179.0,0.1]
[1735750527531,0.001,94183.0,94182.0,0.0033472]
[1735750527771,0.08253217,94184.0,94179.0,0.1]
[1735750528250,0.001,94183.0,94180.0,0.0033472]
[1735750529758,0.001,94183.0,94181.0,0.00011076]
[1735750529939,0.00513217,94184.0,94181.0,0.00011076]
[1735750530141,0.00513217,94184.0,94183.0,0.00011076]
[1735750530775,0.00513217,94184.0,94183.0,0.00345437]
[1735750530932,0.001,94183.0,94182.0,0.00011076]
[1735750531429,0.001,94183.0,94179.0,0.1]
[1735750531637,0.00613217,94184.0,94179.0,0.1]
[1735750531638,0.00513217,94184.0,94182.0,0.00011076]
[1735750532040,0.001,94183.0,94182.0,0.00011076]
[1735750532445,4e-05,95693.0,94184.0,0.00011076]
[1735750532651,0.21264978,94193.0,94184.0,0.00011076]
[1735750533511,0.212332,94192.0,94185.0,0.00011076]
[1735750534615,0.213332,94192.0,94181.0,0.00011076]
[1735750534824,0.213332,94192.0,94185.0,0.00011076]
[1735750535201,0.215332,94192.0,94185.0,0.00011076]
[1735750535411,0.215332,94192.0,94184.0,0.00011076]
[1735750536369,0.214332,94192.0,94185.0,0.00011076]
[1735750537444,0.212332,94192.0,94185.0,0.00011076]
[1735750537645,0.214332,94192.0,94185.0,0.00011076]
[1735750537894,0.002,94192.0,94185.0,0.00011076]
[1735750538245,0.00031978,94193.0,94185.0,0.00011076]
[1735750538445,0.002,94192.0,94185.0,0.00011076]
[1735750539375,0.212334,94191.0,94185.0,0.00011076]
[1735750540695,0.00231978,94193.0,94185.0,0.00011076]
[1735750540917,0.00031978,94193.0,94185.0,0.00011076]
[1735750541117,0.00031978,94193.0,94186.0,0.079]
[1735750541316,0.002,94191.0,94186.0,0.079]
[1735750541544,0.002,94191.0,94187.0,0.00334154]
[1735750541765,0.00031978,94193.0,94187.0,0.00334154]
[1735750542184,0.00231978,94193.0,94187.0,0.00334154]
[1735750543883,0.00031978,94193.0,94187.0,0.00334154]
[1735750553702,0.00031978,94193.0,94188.0,0.079]
[1735750554050,0.00031978,94193.0,94189.0,0.00333951]
[1735750556953,0.15,94197.0,94189.0,0.00333951]
[1735750556954,0.11157577,94197.0,94189.0,0.00333951]
[1735750557765,0.212323,94196.0,94189.0,0.00333951]
[1735750559847,0.213323,94196.0,94189.0,0.00333951]
[1735750561081,0.15,94195.0,94189.0,0.00333951]
[1735750561728,0.15,94195.0,94190.0,0.0822]
[1735750562119,0.15,94195.0,94191.0,0.00334279]
[1735750562541,0.151,94195.0,94191.0,0.00334279]
[1735750562922,0.15,94195.0,94191.0,0.00334279]
[1735750563359,0.151,94195.0,94191.0,0.00334279]
[1735750566526,0.212327,94194.0,94191.0,0.00334279]
[1735750567374,0.151,94195.0,94191.0,0.00334279]
[1735750568252,0.15,94195.0,94191.0,0.00334279]
[1735750568620,0.001,94194.0,94191.0,0.00334279]
[1735750568858,0.15,94192.0,94191.0,0.00334279]
[1735750569061,1.64381032,94192.0,94191.0,0.00334279]
[1735750569234,0.15,94190.0,94187.0,0.0001706]
[1735750569468,0.173,94188.0,94187.0,0.0001706]
[1735750569686,1.22311532,94188.0,94187.0,0.0001706]
[1735750569883,0.90190321,94188.0,94187.0,0.0001706]
[1735750570288,0.90190321,94188.0,94187.0,6e-07]
[1735750570589,0.40288321,94188.0,94187.0,0.0010006]
[1735750570792,0.40288321,94188.0,94187.0,6e-07]
[1735750572238,0.40488321,94188.0,94187.0,0.0010006]
[1735750572439,0.40888321,94188.0,94187.0,0.0010006]
[1735750572870,1.00042621,94188.0,94187.0,0.0010006]
[1735750573953,0.96246721,94188.0,94187.0,0.0010006]
[1735750575194,0.96246721,94188.0,94187.0,6e-07]
[1735750575354,0.40888321,94188.0,94187.0,6e-07]
[1735750577400,0.40918983,94188.0,94187.0,6e-07]
[1735750579735,0.30930059,94188.0,94187.0,6e-07]
[1735750579946,0.40918983,94188.0,94187.0,6e-07]
[1735750580737,0.15,94184.0,94183.0,2e-07]
[1735750580954,0.25398632,94184.0,94183.0,2e-07]
[1735750581271,0.25429294,94184.0,94183.0,2e-07]
[1735750581648,0.35418218,94184.0,94183.0,2e-07]
[1735750581822,0.35818218,94184.0,94183.0,2e-07]
[1735750582227,0.36118218,94184.0,94183.0,0.0010002]
[1735750582429,1.35937703,94184.0,94183.0,0.0010002]
[1735750582749,1.23531603,94184.0,94183.0,0.0010002]
[1735750583606,1.13542679,94184.0,94183.0,2e-07]
[1735750583886,0.26139379,94184.0,94183.0,2e-07]
[1735750584503,0.49824149,94184.0,94183.0,2e-07]
[1735750585592,0.26139379,94184.0,94183.0,2e-07]
[1735750591595,0.38428303,94184.0,94183.0,2e-07]
[1735750592993,0.41597837,94184.0,94183.0,2e-07]
[1735750593265,0.38428303,94184.0,94183.0,2e-07]
[1735750593478,0.41597837,94184.0,94183.0,2e-07]
[1735750595312,0.41597837,94184.0,94183.0,8e-07]
[1735750598600,0.31608913,94184.0,94183.0,8e-07]
[1735750599011,0.14308913,94184.0,94183.0,8e-07]
[1735750599219,0.007,94184.0,94183.0,0.0784008]
[1735750599632,0.007,94184.0,94183.0,0.1276008]
[1735750599837,0.007,94184.0,94183.0,0.13065672]
[1735750600058,0.003,94184.0,94183.0,0.13065672]
[1735750601225,0.15,94184.0,94183.0,0.05225672]
[1735750601486,0.157,94184.0,94183.0,0.0502008]
[1735750601990,0.157,94184.0,94183.0,0.1320008]
[1735750601991,0.15,94184.0,94183.0,0.1320008]
[1735750602209,0.153,94184.0,94183.0,0.1320008]
[1735750602408,0.154,94184.0,94183.0,0.1320008]
[1735750604194,0.15450596,94184.0,94183.0,0.1320008]
[1735750607609,0.15467656,94184.0,94183.0,0.1320008]
[1735750609177,0.15467656,94184.0,94183.0,0.13504314]
[1735750610479,0.00467656,94184.0,94183.0,0.13504314]
[1735750626831,0.00467656,94184.0,94183.0,0.2351539]
[1735750627037,0.0041706,94184.0,94183.0,0.2351539]
[1735750628227,0.0041706,94184.0,94183.0,0.23211156]
[1735750628618,0.0041706,94184.0,94183.0,0.23514987]
[1735750636948,0.0031706,94184.0,94183.0,0.23514987]
[1735750637275,0.0031706,94184.0,94183.0,0.33913619]
[1735750637679,0.0011706,94184.0,94183.0,0.33913619]
[1735750638297,0.0041706,94184.0,94183.0,0.33913619]
[1735750638605,0.00013498,94188.0,94187.0,0.00011076]
[1735750638809,0.00013498,94188.0,94187.0,0.3235163]
[1735750639013,0.00013498,94188.0,94187.0,0.3265473]
[1735750639479,0.00013498,94188.0,94187.0,0.4265473]
[1735750639752,0.0001708,94207.0,94196.0,0.225]
[1735750639967,0.0001708,94207.0,94196.0,0.32909708]
[1735750640169,0.0001708,94207.0,94196.0,0.59556289]
[1735750640360,0.0001708,94207.0,94196.0,0.598575]
[1735750641804,0.0001708,94207.0,94196.0,0.603575]
[1735750642953,0.0001708,94207.0,94196.0,0.606575]
[1735750650903,0.0001708,94207.0,94196.0,0.394252]
[1735750654807,0.0001708,94207.0,94196.0,0.34010919]
[1735750663914,0.0001708,94207.0,94196.0,0.59010919]
[1735750664036,0.0001708,94207.0,94196.0,0.71310919]
[1735750665276,0.0001708,94207.0,94196.0,0.72921503]
[1735750665502,0.0001708,94207.0,94196.0,0.72121503]
[1735750665679,0.0001708,94207.0,94196.0,0.72621503]
[1735750665880,0.0001708,94207.0,94196.0,0.76098897]
[1735750666079,0.0001708,94207.0,94196.0,0.78603513]
[1735750669402,0.212242,94232.0,94231.0,0.00011076]
[1735750669810,0.212242,94232.0,94231.0,0.00307132]
[1735750669811,0.21229171,94232.0,94231.0,0.00307132]
[1735750670022,0.21229171,94232.0,94231.0,0.00011076]
[1735750671530,0.21429171,94232.0,94231.0,0.00011076]
[1735750672400,0.00204971,94232.0,94231.0,0.10011076]
[1735750672717,0.00204971,94232.0,94231.0,0.10307132]
[1735750676358,0.00213501,94232.0,94231.0,0.10307132]
[1735750678212,0.00213501,94232.0,94231.0,0.10011076]
[1735750678417,0.00013501,94232.0,94231.0,0.10011076]
[1735750678631,0.00113501,94232.0,94231.0,0.10307132]
[1735750681874,0.00113501,94232.0,94231.0,0.10296056]
[1735750682585,0.00113501,94232.0,94231.0,0.18156056]
[1735750682791,0.00113501,94232.0,94231.0,0.18167132]
[1735750687820,0.00113501,94232.0,94231.0,0.18184192]
[1735750688177,0.19481331,94234.0,94231.0,0.18184192]
[1735750688362,0.19481331,94234.0,94233.0,0.00011076]
[1735750688712,0.19481331,94234.0,94233.0,0.00305841]
[1735750688909,0.21223,94238.0,94233.0,0.00011076]
[1735750689114,0.21223,94238.0,94233.0,0.00305841]
[1735750689324,0.21223,94238.0,94233.0,0.00011076]
[1735750689567,0.001,94234.0,94233.0,0.00011076]
[1735750689941,0.424458,94238.0,94233.0,0.00011076]
[1735750690143,0.212228,94238.0,94233.0,0.00011076]
[1735750691333,0.214228,94238.0,94233.0,0.00011076]
[1735750692055,0.212236,94235.0,94233.0,0.00011076]
[1735750693211,0.213236,94235.0,94233.0,0.00011076]
[1735750694769,0.001,94235.0,94233.0,0.00011076]
[1735750695554,0.212237,94234.0,94233.0,0.00011076]
[1735750696476,0.212237,94234.0,94232.0,0.1]
[1735750696683,0.212237,94234.0,94233.0,0.00011076]
[1735750696934,0.00045285,94233.0,94232.0,0.1]
[1735750699020,0.00145285,94233.0,94232.0,0.1]
[1735750699872,0.00153815,94233.0,94232.0,0.1]
[1735750703196,0.00153815,94233.0,94232.0,0.1792]
[1735750703606,0.00153815,94233.0,94232.0,0.18214642]
[1735750705637,0.0010853,94233.0,94232.0,0.18214642]
[1735750711568,8.53e-05,94233.0,94232.0,0.18214642]
[1735750711946,0.0010853,94233.0,94232.0,0.18231702]
[1735750721660,0.40177537,94238.0,94232.0,0.18231702]
[1735750721884,0.00048165,94237.0,94232.0,0.18231702]
[1735750722505,0.212233,94236.0,94232.0,0.18231702]
[1735750723555,8.53e-05,94233.0,94232.0,0.18231702]
[1735750724641,8.53e-05,94233.0,94232.0,0.18731702]
[1735750725356,8.53e-05,94233.0,94232.0,0.19131702]
[1735750728879,0.00058424,94233.0,94232.0,0.19131702]
[1735750732584,0.00058424,94233.0,94232.0,0.21532578]
[1735750732789,8.53e-05,94233.0,94232.0,0.3193121]
[1735750733626,8.53e-05,94233.0,94232.0,0.3662121]
[1735750735036,8.53e-05,94233.0,94232.0,0.3656431]
[1735750736082,8.53e-05,94233.0,94232.0,0.34163434]
[1735750747244,0.00096619,94233.0,94232.0,0.29473434]
[1735750748238,8.53e-05,94233.0,94232.0,0.29473434]
[1735750748845,8.53e-05,94233.0,94232.0,0.34093434]
[1735750779577,8.53e-05,94233.0,94232.0,0.3570737]
[1735750779741,8.53e-05,94233.0,94232.0,0.46106002]
[1735750780182,8.53e-05,94233.0,94232.0,0.58406002]
[1735750781550,8.53e-05,94233.0,94232.0,0.67933987]
[1735750784195,8.53e-05,94233.0,94232.0,0.57535355]
[1735750786304,8.53e-05,94233.0,94232.0,0.4800737]
[1735750787094,8.53e-05,94233.0,94232.0,0.57535355]